[Event "*** Titled Tuesday Blitz"]
[Site "Chess.com"]
[Date "2021.04.20"]
[Round "6"]
[White "Nf3c5"]
[Black "A-S-00"]
[Result "1-0"]
[WhiteElo "2619"]
[BlackElo "2330"]
[TimeControl "180+1"]
[EndTime "11:07:26 PDT"]
[Termination "Nf3c5 won by checkmate"]

1. d4 {[%clk 0:03:00]} 1... Nf6 {[%clk 0:02:59.7]} 2. Bf4 {[%clk 0:02:59.5]}
2... g6 {[%clk 0:02:59.4]} 3. Nc3 {[%clk 0:02:59.5]} 3... Bg7 {[%clk 0:02:58.4]}
4. e4 {[%clk 0:02:59]} 4... d6 {[%clk 0:02:57.5]} 5. Qd2 {[%clk 0:02:58.6]} 5...
O-O {[%clk 0:02:48.8]} 6. O-O-O {[%clk 0:02:57.4]} 6... Nbd7 {[%clk 0:02:37]} 7.
Nf3 {[%clk 0:02:57]} 7... c5 {[%clk 0:02:28.5]} 8. d5 {[%clk 0:02:19.4]} 8... h5
{[%clk 0:02:16.6]} 9. Bh6 {[%clk 0:02:17.8]} 9... a6 {[%clk 0:02:06.3]} 10. Bxg7
{[%clk 0:01:42.3]} 10... Kxg7 {[%clk 0:02:05.7]} 11. Qf4 {[%clk 0:01:39.4]}
11... b5 {[%clk 0:01:58.6]} 12. e5 {[%clk 0:01:38.4]} 12... dxe5 {[%clk
0:01:49.9]} 13. Nxe5 {[%clk 0:01:39.3]} 13... Nxe5 {[%clk 0:01:46.7]} 14. Qxe5
{[%clk 0:01:38.7]} 14... Qd6 {[%clk 0:01:46.1]} 15. f4 {[%clk 0:01:31.5]} 15...
Qxe5 {[%clk 0:01:13]} 16. fxe5 {[%clk 0:01:30]} 16... Ng4 {[%clk 0:01:13.3]} 17.
Re1 {[%clk 0:01:29.4]} 17... Bb7 {[%clk 0:01:07.3]} 18. h3 {[%clk 0:01:18.5]}
18... Nh6 {[%clk 0:01:05.9]} 19. Bd3 {[%clk 0:01:06.6]} 19... b4 {[%clk
0:01:03.7]} 20. Ne4 {[%clk 0:01:04]} 20... Bxd5 {[%clk 0:00:55.8]} 21. Nxc5
{[%clk 0:01:03.8]} 21... Bxg2 {[%clk 0:00:44]} 22. Rh2 {[%clk 0:01:03.3]} 22...
Bd5 {[%clk 0:00:42.2]} 23. Nxa6 {[%clk 0:01:00.5]} 23... Rfc8 {[%clk 0:00:30.7]}
24. b3 {[%clk 0:00:52.1]} 24... Be6 {[%clk 0:00:17.1]} 25. Nxb4 {[%clk 0:00:46]}
25... Nf5 {[%clk 0:00:17.1]} 26. Bxf5 {[%clk 0:00:41.3]} 26... Bxf5 {[%clk
0:00:17.2]} 27. Kb2 {[%clk 0:00:42.2]} 27... Rab8 {[%clk 0:00:16.5]} 28. a3
{[%clk 0:00:40]} 28... Rb7 {[%clk 0:00:14.2]} 29. c4 {[%clk 0:00:31.6]} 29... g5
{[%clk 0:00:14.2]} 30. h4 {[%clk 0:00:27.7]} 30... g4 {[%clk 0:00:13.9]} 31. Rf2
{[%clk 0:00:28]} 31... e6 {[%clk 0:00:14.2]} 32. Re3 {[%clk 0:00:24]} 32... Rd7
{[%clk 0:00:13.7]} 33. a4 {[%clk 0:00:23.2]} 33... Rcd8 {[%clk 0:00:14]} 34.
Ree2 {[%clk 0:00:21.1]} 34... Rd1 {[%clk 0:00:12.9]} 35. a5 {[%clk 0:00:18.6]}
35... Rb1+ {[%clk 0:00:12]} 36. Ka3 {[%clk 0:00:17.3]} 36... Rdd1 {[%clk
0:00:12.4]} 37. a6 {[%clk 0:00:16.7]} 37... Rd8 {[%clk 0:00:05.9]} 38. Ka4
{[%clk 0:00:09.7]} 38... Ra1+ {[%clk 0:00:05.2]} 39. Ra2 {[%clk 0:00:10]} 39...
Rxa2+ {[%clk 0:00:05.3]} 40. Rxa2 {[%clk 0:00:10.9]} 40... Be4 {[%clk
0:00:05.5]} 41. Kb5 {[%clk 0:00:11.2]} 41... g3 {[%clk 0:00:04.9]} 42. Kc5
{[%clk 0:00:08.9]} 42... g2 {[%clk 0:00:04.6]} 43. Ra1 {[%clk 0:00:09.4]} 43...
Rb8 {[%clk 0:00:02.9]} 44. Rg1 {[%clk 0:00:08.7]} 44... Kg6 {[%clk 0:00:02.5]}
45. a7 {[%clk 0:00:08.5]} 45... Ra8 {[%clk 0:00:02.6]} 46. Kb6 {[%clk 0:00:09]}
46... Kf5 {[%clk 0:00:03.2]} 47. c5 {[%clk 0:00:09.1]} 47... Kf4 {[%clk
0:00:03.4]} 48. c6 {[%clk 0:00:09.3]} 48... Kf3 {[%clk 0:00:04]} 49. Na6 {[%clk
0:00:03.1]} 49... Kf2 {[%clk 0:00:02.9]} 50. Ra1 {[%clk 0:00:03.2]} 50... g1=Q
{[%clk 0:00:02]} 51. Rxg1 {[%clk 0:00:03.5]} 51... Kxg1 {[%clk 0:00:02.9]} 52.
Nb8 {[%clk 0:00:03.5]} 52... Kg2 {[%clk 0:00:01.7]} 53. Kb7 {[%clk 0:00:03.2]}
53... Rxa7+ {[%clk 0:00:01.8]} 54. Kxa7 {[%clk 0:00:04.1]} 54... Bxc6 {[%clk
0:00:02.3]} 55. Nxc6 {[%clk 0:00:04.4]} 55... Kg3 {[%clk 0:00:03.2]} 56. b4
{[%clk 0:00:05.1]} 56... Kxh4 {[%clk 0:00:03.8]} 57. b5 {[%clk 0:00:06]} 57...
Kg3 {[%clk 0:00:04]} 58. b6 {[%clk 0:00:06.9]} 58... h4 {[%clk 0:00:04.9]} 59.
b7 {[%clk 0:00:07.4]} 59... h3 {[%clk 0:00:05.8]} 60. b8=Q {[%clk 0:00:08.3]}
60... h2 {[%clk 0:00:06.7]} 61. Qb3+ {[%clk 0:00:08.7]} 61... Kg2 {[%clk
0:00:07]} 62. Qc2+ {[%clk 0:00:09]} 62... Kg1 {[%clk 0:00:07.3]} 63. Qd1+ {[%clk
0:00:09.2]} 63... Kg2 {[%clk 0:00:07.6]} 64. Qe2+ {[%clk 0:00:09.5]} 64... Kg1
{[%clk 0:00:08.3]} 65. Qg4+ {[%clk 0:00:09.5]} 65... Kf2 {[%clk 0:00:06.8]} 66.
Qh3 {[%clk 0:00:09.6]} 66... Kg1 {[%clk 0:00:07.1]} 67. Qg3+ {[%clk 0:00:10]}
67... Kh1 {[%clk 0:00:06.5]} 68. Nd4 {[%clk 0:00:08.9]} 68... f5 {[%clk
0:00:06.8]} 69. Nf3 {[%clk 0:00:09.6]} 69... f4 {[%clk 0:00:06.2]} 70. Qxh2#
{[%clk 0:00:10.5]} 1-0

[Event "*** Titled Tuesday Blitz"]
[Site "Chess.com"]
[Date "2021.04.20"]
[Round "6"]
[White "Rsnr"]
[Black "albi1999"]
[Result "1-0"]
[WhiteElo "2784"]
[BlackElo "2611"]
[TimeControl "180+1"]
[EndTime "11:07:28 PDT"]
[Termination "Rsnr won by resignation"]

1. d4 {[%clk 0:03:00.9]} 1... Nf6 {[%clk 0:02:59]} 2. c4 {[%clk 0:03:01.6]} 2...
e6 {[%clk 0:02:57.2]} 3. Nf3 {[%clk 0:03:01.9]} 3... d5 {[%clk 0:02:56.2]} 4. e3
{[%clk 0:03:02.4]} 4... b6 {[%clk 0:02:55.4]} 5. b3 {[%clk 0:03:02.2]} 5... Bd6
{[%clk 0:02:54.8]} 6. Bb2 {[%clk 0:03:02.6]} 6... O-O {[%clk 0:02:55.1]} 7. Bd3
{[%clk 0:03:02.8]} 7... Bb7 {[%clk 0:02:55.2]} 8. O-O {[%clk 0:03:03.4]} 8...
Nbd7 {[%clk 0:02:55.7]} 9. Nc3 {[%clk 0:03:03.6]} 9... a6 {[%clk 0:02:55.7]} 10.
Qe2 {[%clk 0:03:04]} 10... Ne4 {[%clk 0:02:53.4]} 11. Nd2 {[%clk 0:02:47.5]}
11... f5 {[%clk 0:02:29.3]} 12. f4 {[%clk 0:02:47.3]} 12... Ndf6 {[%clk
0:02:11.6]} 13. Nf3 {[%clk 0:02:47.2]} 13... c5 {[%clk 0:02:06.8]} 14. Rad1
{[%clk 0:02:39.6]} 14... Qe7 {[%clk 0:02:04.9]} 15. Na4 {[%clk 0:02:37.2]} 15...
Qc7 {[%clk 0:01:57.7]} 16. dxc5 {[%clk 0:02:24.2]} 16... bxc5 {[%clk 0:01:55.5]}
17. cxd5 {[%clk 0:02:22.5]} 17... exd5 {[%clk 0:01:54.1]} 18. Rc1 {[%clk
0:02:22.5]} 18... Rfe8 {[%clk 0:01:44.7]} 19. Ne5 {[%clk 0:02:16.5]} 19... Qe7
{[%clk 0:01:16.8]} 20. Rfd1 {[%clk 0:02:02.1]} 20... Kh8 {[%clk 0:01:16.4]} 21.
Nb6 {[%clk 0:01:47.4]} 21... Rad8 {[%clk 0:01:15.1]} 22. Bxa6 {[%clk 0:01:46.4]}
22... Bxa6 {[%clk 0:01:13.7]} 23. Qxa6 {[%clk 0:01:47.3]} 23... Ng4 {[%clk
0:01:08]} 24. Nxd5 {[%clk 0:01:45.5]} 24... Qh4 {[%clk 0:01:05.3]} 25. Nxg4
{[%clk 0:01:36.4]} 25... fxg4 {[%clk 0:01:03.8]} 26. Rc2 {[%clk 0:01:17.4]}
26... g3 {[%clk 0:00:57]} 27. h3 {[%clk 0:01:17.7]} 27... Qh5 {[%clk 0:00:53.3]}
28. Qe2 {[%clk 0:01:15.3]} 28... Qf7 {[%clk 0:00:51.5]} 29. Nb6 {[%clk
0:01:04.2]} 29... Nf2 {[%clk 0:00:44.8]} 30. Re1 {[%clk 0:00:47.4]} 30... Bxf4
{[%clk 0:00:41.7]} 31. Nc4 {[%clk 0:00:37.3]} 31... Bh6 {[%clk 0:00:29.8]} 32.
Qf3 {[%clk 0:00:36.1]} 32... Qxf3 {[%clk 0:00:27]} 33. gxf3 {[%clk 0:00:37]}
33... Nxh3+ {[%clk 0:00:27.9]} 34. Kg2 {[%clk 0:00:37.1]} 34... Nf4+ {[%clk
0:00:23.6]} 35. Kxg3 {[%clk 0:00:37.4]} 35... Nd3 {[%clk 0:00:24.1]} 36. Ree2
{[%clk 0:00:35.5]} 36... Re6 {[%clk 0:00:19.6]} 37. f4 {[%clk 0:00:24]} 37...
Rf8 {[%clk 0:00:14.5]} 38. Ne5 {[%clk 0:00:20.5]} 38... Nxb2 {[%clk 0:00:07.7]}
39. Rxb2 {[%clk 0:00:20.4]} 39... g5 {[%clk 0:00:08.3]} 40. Rf2 {[%clk
0:00:10.8]} 40... gxf4+ {[%clk 0:00:07.4]} 41. exf4 {[%clk 0:00:11.7]} 41... Bg7
{[%clk 0:00:04.8]} 42. Rbe2 {[%clk 0:00:11.3]} 42... Kg8 {[%clk 0:00:04.6]} 43.
Ng4 {[%clk 0:00:07.9]} 43... Rg6 {[%clk 0:00:02.3]} 44. Kh3 {[%clk 0:00:05.9]}
44... Bd4 {[%clk 0:00:01.3]} 45. Rf3 {[%clk 0:00:05.6]} 45... h5 {[%clk
0:00:01.8]} 46. Ne5 {[%clk 0:00:05.9]} 46... Rgf6 {[%clk 0:00:01.9]} 47. Rg3+
{[%clk 0:00:06.3]} 47... Kh7 {[%clk 0:00:02.4]} 48. Rg5 {[%clk 0:00:06.7]} 48...
Rxf4 {[%clk 0:00:02.4]} 49. Rxh5+ {[%clk 0:00:07.1]} 49... Kg7 {[%clk
0:00:03.3]} 50. Rg2+ {[%clk 0:00:07.3]} 50... Kf6 {[%clk 0:00:03.9]} 51. Nd7+
{[%clk 0:00:04.8]} 51... Ke7 {[%clk 0:00:02.7]} 52. Nxf8 {[%clk 0:00:05.4]}
52... Rxf8 {[%clk 0:00:03.3]} 53. Rh7+ {[%clk 0:00:05.5]} 53... Kd6 {[%clk
0:00:03.9]} 54. Rg6+ {[%clk 0:00:05.4]} 54... Ke5 {[%clk 0:00:04.2]} 55. Re7+
{[%clk 0:00:05.2]} 55... Kf5 {[%clk 0:00:04.8]} 56. Rh6 {[%clk 0:00:03.9]} 56...
Rg8 {[%clk 0:00:03.5]} 57. Rh5+ {[%clk 0:00:03.5]} 57... Kf4 {[%clk 0:00:03.8]}
58. Rf7+ {[%clk 0:00:04]} 58... Ke3 {[%clk 0:00:04.1]} 59. Rhh7 {[%clk
0:00:02.4]} 59... Rg1 {[%clk 0:00:03.3]} 60. Rb7 {[%clk 0:00:02]} 60... Kf3
{[%clk 0:00:03]} 61. Kh4 {[%clk 0:00:02]} 61... Be3 {[%clk 0:00:01.8]} 62. Kh5
{[%clk 0:00:01.9]} 62... Bf4 {[%clk 0:00:02.3]} 63. Rhf7 {[%clk 0:00:02]} 63...
Rg5+ {[%clk 0:00:02.1]} 64. Kh6 {[%clk 0:00:02.7]} 64... Rg2+ {[%clk 0:00:02.1]}
65. Kh7 {[%clk 0:00:03.3]} 65... Rxa2 {[%clk 0:00:03]} 66. Rf6 {[%clk 0:00:03]}
66... Rh2+ {[%clk 0:00:03.9]} 67. Kg8 {[%clk 0:00:03]} 67... Rh4 {[%clk
0:00:04.8]} 68. Rbf7 {[%clk 0:00:03.2]} 68... Ke4 {[%clk 0:00:05.3]} 69. Re6+
{[%clk 0:00:03.7]} 69... Be5 {[%clk 0:00:05.6]} 70. Rfe7 {[%clk 0:00:03.7]}
70... Rh5 {[%clk 0:00:06]} 71. Kf8 {[%clk 0:00:04.2]} 71... Kd5 {[%clk
0:00:06.6]} 72. Ke8 {[%clk 0:00:04.7]} 72... Rh8+ {[%clk 0:00:06.4]} 73. Kf7
{[%clk 0:00:05.4]} 73... Rh5 {[%clk 0:00:06.5]} 74. Re8 {[%clk 0:00:05.3]} 74...
Rf5+ {[%clk 0:00:06.4]} 75. Kg6 {[%clk 0:00:05.6]} 75... Rf2 {[%clk 0:00:02.3]}
76. Rxe5+ {[%clk 0:00:05.9]} 76... Kd4 {[%clk 0:00:03.2]} 77. Re4+ {[%clk
0:00:06.4]} 77... Kd3 {[%clk 0:00:03.5]} 78. Rc4 {[%clk 0:00:06.1]} 78... Rg2+
{[%clk 0:00:02.6]} 79. Kf7 {[%clk 0:00:06.6]} 1-0

[Event "*** Titled Tuesday Blitz"]
[Site "Chess.com"]
[Date "2021.04.20"]
[Round "6"]
[White "FeketeBarika"]
[Black "vova-79"]
[Result "0-1"]
[WhiteElo "2254"]
[BlackElo "2542"]
[TimeControl "180+1"]
[EndTime "11:07:46 PDT"]
[Termination "vova-79 won by resignation"]

1. Nf3 {[%clk 0:03:00.9]} 1... d5 {[%clk 0:02:58.3]} 2. g3 {[%clk 0:03:01.8]}
2... c6 {[%clk 0:02:57.7]} 3. Bg2 {[%clk 0:03:02.7]} 3... Bg4 {[%clk 0:02:57.6]}
4. O-O {[%clk 0:03:01.3]} 4... Nd7 {[%clk 0:02:57.1]} 5. c4 {[%clk 0:02:59.2]}
5... e6 {[%clk 0:02:56.7]} 6. cxd5 {[%clk 0:02:51.5]} 6... exd5 {[%clk 0:02:56]}
7. Qb3 {[%clk 0:02:52]} 7... Qb6 {[%clk 0:02:54.1]} 8. Qc3 {[%clk 0:02:42.8]}
8... Ngf6 {[%clk 0:02:52.9]} 9. h3 {[%clk 0:02:34.7]} 9... Bh5 {[%clk
0:02:49.6]} 10. d4 {[%clk 0:02:34.3]} 10... Be7 {[%clk 0:02:43.9]} 11. Nh4
{[%clk 0:02:31.3]} 11... O-O {[%clk 0:02:40]} 12. Nf5 {[%clk 0:02:29]} 12... Bb4
{[%clk 0:02:38.6]} 13. Qc2 {[%clk 0:02:25.2]} 13... Rfe8 {[%clk 0:02:37]} 14. e3
{[%clk 0:02:21.4]} 14... Bg6 {[%clk 0:02:33.1]} 15. g4 {[%clk 0:02:19.2]} 15...
Ne4 {[%clk 0:02:30.2]} 16. Nc3 {[%clk 0:02:07.7]} 16... Nd6 {[%clk 0:02:24.7]}
17. Ne2 {[%clk 0:01:57.5]} 17... Ne4 {[%clk 0:02:08.8]} 18. a3 {[%clk
0:01:54.2]} 18... Bf8 {[%clk 0:02:07.6]} 19. Neg3 {[%clk 0:01:50.7]} 19... Ndf6
{[%clk 0:02:05.9]} 20. Bxe4 {[%clk 0:01:28]} 20... Nxe4 {[%clk 0:02:02.2]} 21.
Nxe4 {[%clk 0:01:22.5]} 21... Rxe4 {[%clk 0:02:02.4]} 22. Qc3 {[%clk 0:01:13.7]}
22... Bxf5 {[%clk 0:01:53.2]} 23. gxf5 {[%clk 0:01:14.6]} 23... Qd8 {[%clk
0:01:47.9]} 24. f3 {[%clk 0:01:11.6]} 24... Rh4 {[%clk 0:01:46.5]} 25. Kh2
{[%clk 0:01:11.5]} 25... Bd6+ {[%clk 0:01:45]} 26. f4 {[%clk 0:01:10.7]} 26...
Qf6 {[%clk 0:01:43.8]} 27. Qe1 {[%clk 0:01:07.4]} 27... Rh5 {[%clk 0:01:33.1]}
28. Qg3 {[%clk 0:01:06.4]} 28... Qxf5 {[%clk 0:01:31.9]} 29. Rg1 {[%clk
0:01:06.9]} 29... g6 {[%clk 0:01:29.9]} 30. Bd2 {[%clk 0:01:05.9]} 30... Re8
{[%clk 0:01:27.8]} 31. Rac1 {[%clk 0:01:02.8]} 31... Qd3 {[%clk 0:01:26.1]} 32.
Rg2 {[%clk 0:01:00.8]} 32... Be7 {[%clk 0:01:15.2]} 33. Qf3 {[%clk 0:00:59.9]}
33... Qf5 {[%clk 0:01:11.3]} 34. b4 {[%clk 0:00:58.1]} 34... a6 {[%clk
0:01:09.7]} 35. a4 {[%clk 0:00:57.2]} 35... Kf8 {[%clk 0:00:56.4]} 36. Be1
{[%clk 0:00:17.9]} 36... Qe6 {[%clk 0:00:46.5]} 37. a5 {[%clk 0:00:17.6]} 37...
Bd6 {[%clk 0:00:40.4]} 38. Bd2 {[%clk 0:00:17.7]} 38... Ke7 {[%clk 0:00:38.3]}
39. Rcg1 {[%clk 0:00:17.3]} 39... Kd7 {[%clk 0:00:37]} 40. Rg5 {[%clk
0:00:17.2]} 40... Rxg5 {[%clk 0:00:34.2]} 41. Rxg5 {[%clk 0:00:18.1]} 41... Qe4
{[%clk 0:00:31.5]} 42. Qf2 {[%clk 0:00:17.6]} 42... Qc2 {[%clk 0:00:27.4]} 43.
Kg2 {[%clk 0:00:17.2]} 43... Qb2 {[%clk 0:00:25]} 44. f5 {[%clk 0:00:17.4]}
44... f6 {[%clk 0:00:18.2]} 45. Rg3 {[%clk 0:00:16.6]} 45... g5 {[%clk
0:00:17.9]} 46. Rf3 {[%clk 0:00:15.7]} 46... Bxb4 {[%clk 0:00:16.6]} 47. Bxb4
{[%clk 0:00:16.6]} 47... Qxb4 {[%clk 0:00:15.2]} 48. Qg3 {[%clk 0:00:13.8]}
48... Qxa5 {[%clk 0:00:13.4]} 49. Qg4 {[%clk 0:00:14]} 49... Qd2+ {[%clk
0:00:12.8]} 50. Kg3 {[%clk 0:00:14.3]} 50... Rxe3 {[%clk 0:00:12.2]} 51. Qh5
{[%clk 0:00:14.4]} 51... Rxf3+ {[%clk 0:00:10.8]} 52. Qxf3 {[%clk 0:00:13.2]}
52... Qxd4 {[%clk 0:00:09.6]} 53. Qh5 {[%clk 0:00:12.7]} 53... Qd3+ {[%clk
0:00:08.4]} 54. Kg2 {[%clk 0:00:12.9]} 54... Qxf5 {[%clk 0:00:07.6]} 55. Qf7+
{[%clk 0:00:13.5]} 55... Kd6 {[%clk 0:00:08]} 56. Qf8+ {[%clk 0:00:14.1]} 56...
Ke5 {[%clk 0:00:07.4]} 57. Qe7+ {[%clk 0:00:14.2]} 57... Qe6 {[%clk 0:00:05.1]}
58. Qxb7 {[%clk 0:00:13.9]} 58... h5 {[%clk 0:00:04.3]} 59. Qxa6 {[%clk
0:00:13.9]} 59... Kf5 {[%clk 0:00:03.8]} 60. Qd3+ {[%clk 0:00:13.6]} 60... Ke5
{[%clk 0:00:03.4]} 61. Qe3+ {[%clk 0:00:13.6]} 61... Kd6 {[%clk 0:00:03.5]} 62.
Qg3+ {[%clk 0:00:13.3]} 62... Qe5 {[%clk 0:00:03.3]} 63. Qa3+ {[%clk 0:00:13.7]}
63... Ke6 {[%clk 0:00:03.5]} 64. Qf8 {[%clk 0:00:13.4]} 64... Qe4+ {[%clk
0:00:04.4]} 65. Kf2 {[%clk 0:00:12.5]} 65... Ke5 {[%clk 0:00:04]} 66. Qe7+
{[%clk 0:00:12.1]} 66... Kf5 {[%clk 0:00:03.8]} 67. Qd7+ {[%clk 0:00:12]} 67...
Qe6 {[%clk 0:00:03.5]} 68. Qd8 {[%clk 0:00:10.7]} 68... c5 {[%clk 0:00:03]} 69.
Qa5 {[%clk 0:00:09.9]} 69... c4 {[%clk 0:00:02.8]} 70. Qc3 {[%clk 0:00:10.1]}
70... Qe4 {[%clk 0:00:02.2]} 71. Qb4 {[%clk 0:00:09.6]} 71... Qf4+ {[%clk
0:00:01.6]} 72. Kg2 {[%clk 0:00:08.7]} 72... Qe4+ {[%clk 0:00:02]} 73. Kf2
{[%clk 0:00:08.9]} 73... Qd3 {[%clk 0:00:02.2]} 74. Kg2 {[%clk 0:00:08.8]} 74...
c3 {[%clk 0:00:02]} 75. Qc5 {[%clk 0:00:08.9]} 75... c2 {[%clk 0:00:01.8]} 76.
Qc8+ {[%clk 0:00:09]} 76... Kg6 {[%clk 0:00:01.8]} 77. Qe8+ {[%clk 0:00:09.2]}
77... Kf5 {[%clk 0:00:01.7]} 78. Qd7+ {[%clk 0:00:08.5]} 78... Ke5 {[%clk
0:00:02.6]} 79. Qe7+ {[%clk 0:00:07.3]} 79... Kd4 {[%clk 0:00:03.5]} 80. Qb4+
{[%clk 0:00:07.5]} 80... Ke3 {[%clk 0:00:02.8]} 81. Qc5+ {[%clk 0:00:07.4]}
81... d4 {[%clk 0:00:03.7]} 82. Qe7+ {[%clk 0:00:07.1]} 82... Kd2 {[%clk
0:00:04.6]} 83. Qb4+ {[%clk 0:00:07.1]} 83... Qc3 {[%clk 0:00:04.9]} 0-1

[Event "*** Titled Tuesday Blitz"]
[Site "Chess.com"]
[Date "2021.04.20"]
[Round "6"]
[White "KuzubovYuriy"]
[Black "wonderfultime"]
[Result "1/2-1/2"]
[WhiteElo "2864"]
[BlackElo "2967"]
[TimeControl "180+1"]
[EndTime "11:08:31 PDT"]
[Termination "Game drawn by repetition"]

1. d4 {[%clk 0:03:00.9]} 1... d5 {[%clk 0:03:00]} 2. c4 {[%clk 0:03:00.7]} 2...
c6 {[%clk 0:03:00.2]} 3. Nf3 {[%clk 0:03:01.3]} 3... Nf6 {[%clk 0:03:00.4]} 4.
Nc3 {[%clk 0:03:01.8]} 4... a6 {[%clk 0:03:00.2]} 5. Qc2 {[%clk 0:03:01.3]} 5...
dxc4 {[%clk 0:02:56.5]} 6. a4 {[%clk 0:03:01]} 6... Bg4 {[%clk 0:02:56.2]} 7. e3
{[%clk 0:02:58.2]} 7... e6 {[%clk 0:02:51.3]} 8. Bxc4 {[%clk 0:02:57.7]} 8...
Nbd7 {[%clk 0:02:51.9]} 9. Be2 {[%clk 0:02:52.7]} 9... Bd6 {[%clk 0:02:50.1]}
10. h3 {[%clk 0:02:52.1]} 10... Bh5 {[%clk 0:02:50.1]} 11. O-O {[%clk
0:02:50.7]} 11... O-O {[%clk 0:02:50.1]} 12. Rd1 {[%clk 0:02:50]} 12... Qe7
{[%clk 0:02:48.8]} 13. e4 {[%clk 0:02:38.8]} 13... Bxf3 {[%clk 0:02:44.2]} 14.
Bxf3 {[%clk 0:02:33.8]} 14... e5 {[%clk 0:02:44.8]} 15. d5 {[%clk 0:02:29.4]}
15... Rac8 {[%clk 0:02:43]} 16. dxc6 {[%clk 0:02:18.5]} 16... Rxc6 {[%clk
0:02:40.8]} 17. Bg5 {[%clk 0:02:19]} 17... h6 {[%clk 0:02:35.3]} 18. Bh4 {[%clk
0:02:18.8]} 18... Bb4 {[%clk 0:02:18.3]} 19. Bg4 {[%clk 0:01:58.6]} 19... g5
{[%clk 0:01:54.3]} 20. Bxd7 {[%clk 0:01:55.8]} 20... Nxd7 {[%clk 0:01:50.6]} 21.
Bg3 {[%clk 0:01:27]} 21... Bxc3 {[%clk 0:01:48.6]} 22. bxc3 {[%clk 0:01:26.3]}
22... Rfc8 {[%clk 0:01:44.4]} 23. Rd5 {[%clk 0:01:20.9]} 23... Nc5 {[%clk
0:00:25.6]} 24. Rxe5 {[%clk 0:01:19]} 24... Ne6 {[%clk 0:00:25.5]} 25. Qb3
{[%clk 0:01:12.8]} 25... Rxc3 {[%clk 0:00:24.8]} 26. Qd1 {[%clk 0:01:07.7]}
26... Qf6 {[%clk 0:00:18.9]} 27. Rd5 {[%clk 0:01:03.2]} 27... Qg6 {[%clk
0:00:16.3]} 28. f3 {[%clk 0:00:55.2]} 28... Nf4 {[%clk 0:00:14.5]} 29. Rd8+
{[%clk 0:00:42.6]} 29... Rxd8 {[%clk 0:00:14.9]} 30. Qxd8+ {[%clk 0:00:42.3]}
30... Kh7 {[%clk 0:00:15.8]} 31. Bxf4 {[%clk 0:00:35.6]} 31... gxf4 {[%clk
0:00:16.7]} 32. Kh1 {[%clk 0:00:35.1]} 32... Rc2 {[%clk 0:00:14]} 33. Rg1 {[%clk
0:00:34.6]} 33... b5 {[%clk 0:00:14.6]} 34. axb5 {[%clk 0:00:33.2]} 34... axb5
{[%clk 0:00:15.5]} 35. Qe7 {[%clk 0:00:30.8]} 35... Rc6 {[%clk 0:00:12.9]} 36.
Qb4 {[%clk 0:00:27.6]} 36... Qg5 {[%clk 0:00:12]} 37. Qd2 {[%clk 0:00:25]} 37...
Rg6 {[%clk 0:00:11.6]} 38. Rb1 {[%clk 0:00:22]} 38... Qe5 {[%clk 0:00:09.7]} 39.
Rc1 {[%clk 0:00:20.5]} 39... Rd6 {[%clk 0:00:08.4]} 40. Qb4 {[%clk 0:00:19.2]}
40... Rg6 {[%clk 0:00:08.1]} 41. Qb3 {[%clk 0:00:17.1]} 41... Qg7 {[%clk
0:00:07.5]} 42. Rc2 {[%clk 0:00:15.9]} 42... Qa1+ {[%clk 0:00:07.6]} 43. Kh2
{[%clk 0:00:16.1]} 43... Qe5 {[%clk 0:00:08.5]} 44. Qxf7+ {[%clk 0:00:15.4]}
44... Rg7 {[%clk 0:00:08]} 45. Qb3 {[%clk 0:00:14.9]} 45... Qg5 {[%clk
0:00:07.3]} 46. Kh1 {[%clk 0:00:14.2]} 46... Qg3 {[%clk 0:00:06.6]} 47. Re2
{[%clk 0:00:12.2]} 47... Qg5 {[%clk 0:00:06.2]} 48. Rb2 {[%clk 0:00:11.4]} 48...
Qg3 {[%clk 0:00:05.4]} 49. Qc3 {[%clk 0:00:11]} 49... Rd7 {[%clk 0:00:04.7]} 50.
Rb1 {[%clk 0:00:11]} 50... Rg7 {[%clk 0:00:05.1]} 51. Rg1 {[%clk 0:00:10.9]}
51... Qg5 {[%clk 0:00:04.6]} 52. Qd4 {[%clk 0:00:10.8]} 52... Re7 {[%clk
0:00:04.4]} 53. Qb6 {[%clk 0:00:10.2]} 53... Rg7 {[%clk 0:00:04.7]} 54. Qb8
{[%clk 0:00:09.5]} 54... Re7 {[%clk 0:00:04.9]} 55. Rd1 {[%clk 0:00:08.9]} 55...
Rg7 {[%clk 0:00:05.3]} 56. Rd2 {[%clk 0:00:08.6]} 56... Qg3 {[%clk 0:00:05.3]}
57. Re2 {[%clk 0:00:08.7]} 57... Qg5 {[%clk 0:00:05.4]} 58. Qd6 {[%clk
0:00:07.9]} 58... Ra7 {[%clk 0:00:05]} 59. Re1 {[%clk 0:00:08.1]} 59... Rg7
{[%clk 0:00:05.2]} 60. Rg1 {[%clk 0:00:07.8]} 60... Re7 {[%clk 0:00:05.4]} 61.
Qb8 {[%clk 0:00:06.6]} 61... Rg7 {[%clk 0:00:05.7]} 62. e5 {[%clk 0:00:07]}
62... Re7 {[%clk 0:00:05.6]} 63. Qxb5 {[%clk 0:00:06.9]} 63... Qxe5 {[%clk
0:00:06]} 64. Qd3+ {[%clk 0:00:07.3]} 64... Kg7 {[%clk 0:00:05.9]} 65. Rd1
{[%clk 0:00:07.7]} 65... Qf6 {[%clk 0:00:06.2]} 66. Qd5 {[%clk 0:00:07.7]} 66...
Rf7 {[%clk 0:00:06.3]} 67. Qh5 {[%clk 0:00:07.8]} 67... Re7 {[%clk 0:00:06.2]}
68. Kh2 {[%clk 0:00:07.6]} 68... Qg5 {[%clk 0:00:06.2]} 69. Qg4 {[%clk
0:00:07.8]} 69... Rf7 {[%clk 0:00:03.9]} 70. Rd5 {[%clk 0:00:07.4]} 70... Qxg4
{[%clk 0:00:03.5]} 71. hxg4 {[%clk 0:00:08.3]} 71... Kg6 {[%clk 0:00:04.2]} 72.
Kh3 {[%clk 0:00:08.6]} 72... Rf8 {[%clk 0:00:04.6]} 73. Kh4 {[%clk 0:00:08.9]}
73... Rf6 {[%clk 0:00:04.8]} 74. Rc5 {[%clk 0:00:09.2]} 74... Rd6 {[%clk
0:00:04.3]} 75. Rf5 {[%clk 0:00:09.3]} 75... Rd2 {[%clk 0:00:04.5]} 76. Kh3
{[%clk 0:00:09.1]} 76... Rd4 {[%clk 0:00:05]} 77. Re5 {[%clk 0:00:08.8]} 77...
Rd6 {[%clk 0:00:04.7]} 78. Re4 {[%clk 0:00:08.4]} 78... Rf6 {[%clk 0:00:05.1]}
79. Rb4 {[%clk 0:00:08.4]} 79... Rf8 {[%clk 0:00:05.2]} 80. Kh4 {[%clk 0:00:08]}
80... Rf6 {[%clk 0:00:05.5]} 81. Ra4 {[%clk 0:00:08.4]} 81... Rf7 {[%clk
0:00:02.4]} 82. Ra6+ {[%clk 0:00:08.5]} 82... Kg7 {[%clk 0:00:02.4]} 83. Kh5
{[%clk 0:00:08.9]} 83... Rd7 {[%clk 0:00:02.4]} 84. Rg6+ {[%clk 0:00:08.8]}
84... Kf7 {[%clk 0:00:03]} 85. Rxh6 {[%clk 0:00:09.1]} 85... Rd2 {[%clk
0:00:03.3]} 86. Kg5 {[%clk 0:00:09.4]} 86... Rxg2 {[%clk 0:00:03]} 87. Kxf4
{[%clk 0:00:09.7]} 87... Ra2 {[%clk 0:00:03.9]} 88. Rb6 {[%clk 0:00:09.7]} 88...
Ra3 {[%clk 0:00:03.9]} 89. g5 {[%clk 0:00:09.4]} 89... Ra5 {[%clk 0:00:04.4]}
90. Kg4 {[%clk 0:00:09.4]} 90... Ra1 {[%clk 0:00:04.6]} 91. f4 {[%clk
0:00:09.7]} 91... Rg1+ {[%clk 0:00:05.1]} 92. Kf5 {[%clk 0:00:10]} 92... Ra1
{[%clk 0:00:05.7]} 93. Rb7+ {[%clk 0:00:10.1]} 93... Kf8 {[%clk 0:00:06]} 94. g6
{[%clk 0:00:10.5]} 94... Ra6 {[%clk 0:00:06.1]} 95. Kg5 {[%clk 0:00:10.5]} 95...
Ra5+ {[%clk 0:00:03.2]} 96. f5 {[%clk 0:00:10.7]} 96... Rc5 {[%clk 0:00:03.9]}
97. Ra7 {[%clk 0:00:09.5]} 97... Rb5 {[%clk 0:00:03.8]} 98. Kg4 {[%clk
0:00:09.6]} 98... Rb4+ {[%clk 0:00:04.1]} 99. Kg5 {[%clk 0:00:10]} 99... Rb5
{[%clk 0:00:04.7]} 100. Kf4 {[%clk 0:00:10.1]} 100... Rb4+ {[%clk 0:00:05.1]}
101. Kf3 {[%clk 0:00:10]} 101... Rb3+ {[%clk 0:00:05.5]} 102. Ke4 {[%clk
0:00:10.1]} 102... Rb4+ {[%clk 0:00:06]} 103. Kd5 {[%clk 0:00:09.5]} 103... Rb5+
{[%clk 0:00:06.4]} 104. Ke6 {[%clk 0:00:09.7]} 104... Rb6+ {[%clk 0:00:07]} 105.
Ke5 {[%clk 0:00:08.4]} 105... Rb5+ {[%clk 0:00:07.5]} 106. Kf6 {[%clk
0:00:08.7]} 106... Rb6+ {[%clk 0:00:08.1]} 107. Kg5 {[%clk 0:00:09.2]} 107...
Rb5 {[%clk 0:00:08.5]} 1/2-1/2